Workbook

Sheet Лист1
A1: Школа | C1: МБОУ "Татарско-Баганинская СОШ" | F1: Утвердил: | G1: должность | H1: Директор
A2: Типовое примерное меню приготавливаемых блюд | G2: фамилия | H2: Тухватулллина Гульназ Наилевна
A3: Возрастная категория | E3: 7-11 лет | G3: дата | H3: 2 | I3: 9 | J3: 2024
H4: день | I4: месяц | J4: год
A5: Неделя | B5: День недели | C5: Прием пищи | D5: Раздел меню | E5: Блюда | F5: Вес блюда, г | G5: Белки | H5: Жиры | I5: Углеводы | J5: Калорийность | K5: № рецептуры | L5: Цена
A6: 1 | B6: 1 | C6: Завтрак | D6: гор.блюдо | E6: Каша вязкая гречневая | F6: 150 | G6: 6.662 | H6: 9.024 | I6: 34 | J6: 170 | K6: 303
D7: гор.блюдо | E7: Бифштекс рубленый | F7: 100 | G7: 10.4 | H7: 8.938 | J7: 250.56 | K7: 266
D8: хлеб | E8: Хлеб ржаной (ржано-пшеничный) | F8: 20 | G8: 1 | H8: 0.2 | I8: 9 | J8: 44 | K8: 376
D9: хлеб | E9: Хлеб пшеничный | F9: 30 | G9: 2.28 | H9: 0.24 | I9: 14.76 | J9: 71 | K9: 376
D10: гор.напиток | E10: Чай с молоком | F10: 200 | G10: 1.52 | H10: 1.35 | I10: 15.9 | J10: 81 | K10: 378
D11: фрукты | E11: Плоды и ягоды свежие | F11: 100 | G11: 0.4 | H11: 0.4 | I11: 7.35 | J11: 47 | K11: 388 | L11: 66.76
D13: итого
A14: =A6 -> 1 | B14: =B6 -> 1 | C14: Обед | D14: закуска
D15: 1 блюдо
D16: 2 блюдо
D17: гарнир
D18: напиток
D19: хлеб бел.
D20: хлеб черн.
D23: итого
A24: =A6 -> 1 | B24: =B6 -> 1 | C24: Итого за день: | F24: =SUM(F6:F11) -> 600 | G24: =SUM(G6:G11) -> 22.262 | H24: 20.152 | I24: 81.01 | J24: 663.56 | L24: =SUM(L6:L12) -> 66.76
A25: 1 | B25: 2 | C25: Завтрак | D25: гор.блюдо | E25: Рагу из птицы | F25: 200 | G25: 12.3 | H25: 17.66 | I25: 29.85 | J25: 313 | K25: 289
D26: хлеб | E26: Хлеб ржаной (ржано-пшеничный) | F26: 20 | G26: 1 | H26: 0.2 | I26: 9 | J26: 44 | K26: 376
D27: хлеб | E27: Хлеб пшеничный | F27: 30 | G27: 2.28 | H27: 0.24 | I27: 14.76 | J27: 71 | K27: 376
D28: гор.напиток | E28: Какао с молоком | F28: 200 | G28: 3.78 | H28: 0.67 | I28: 26 | J28: 125 | K28: 382
D29: закуска | E29: Салат из свеклы отварной | F29: 60 | G29: 0.855 | H29: 3.653 | I29: 11.58 | J29: 56 | K29: 52 | L29: 66.76
D32: итого
A33: =A25 -> 1 | B33: =B25 -> 2 | C33: Обед | D33: закуска
D34: 1 блюдо
D35: 2 блюдо
D36: гарнир
D37: напиток
D38: хлеб бел.
D39: хлеб черн.
D42: итого
A43: =A25 -> 1 | B43: =B25 -> 2 | C43: Итого за день: | F43: =SUM(F25:F31) -> 510 | G43: =SUM(G25:G31) -> 20.215 | H43: 22.423 | I43: 91.19 | J43: 609 | L43: 66.76
A44: 1 | B44: 3 | C44: Завтрак | D44: гор.блюдо | E44: Мясо тушеное | F44: 100 | G44: 10.5 | H44: 11.03 | I44: 3.184 | J44: 196 | K44: 256
D45: гор.блюдо | E45: Макаронные изделия отварные | F45: 155 | G45: 5.1 | H45: 4.468 | I45: 28.5 | J45: 187 | K45: 203
D46: хлеб | E46: Хлеб ржаной (ржано-пшеничный) | F46: 20 | G46: 1 | H46: 0.2 | I46: 9 | J46: 44 | K46: 376
D47: хлеб | E47: Хлеб пшеничный | F47: 30 | G47: 2.28 | H47: 0.24 | I47: 14.76 | J47: 71 | K47: 376
D48: гор.напиток | E48: Чай с лимоном | F48: 200 | G48: 0.084 | H48: 0.012 | I48: 15.185 | J48: 62 | K48: 377
D49: фрукты | E49: Плоды и ягоды свежие | F49: 100 | G49: 0.4 | H49: 0.4 | I49: 7.35 | J49: 47 | K49: 388 | L49: 66.76
D51: итого
A52: =A44 -> 1 | B52: =B44 -> 3 | C52: Обед | D52: закуска
D53: 1 блюдо
D54: 2 блюдо
D55: гарнир
D56: напиток
D57: хлеб бел.
D58: хлеб черн.
D61: итого
A62: =A44 -> 1 | B62: =B44 -> 3 | C62: Итого за день: | F62: =SUM(F44:F50) -> 605 | G62: =SUM(G44:G50) -> 19.364 | H62: 16.35 | I62: 77.979 | J62: 607 | L62: 66.76
A63: 1 | B63: 4 | C63: Завтрак | D63: гор.блюдо | E63: Пюре картофельное | F63: 150 | G63: 3.09 | H63: 8.282 | I63: 22 | J63: 172 | K63: 312
D64: гор.блюдо | E64: Биточки рыбные | F64: 100 | G64: 8.063 | H64: 5.3 | I64: 9.363 | J64: 145 | K64: 234
D65: хлеб | E65: Хлеб ржаной (ржано-пшеничный) | F65: 20 | G65: 1 | H65: 0.2 | I65: 9 | J65: 44 | K65: 376
D66: хлеб | E66: Хлеб пшеничный | F66: 30 | G66: 2.28 | H66: 0.24 | I66: 14.76 | J66: 71 | K66: 376
D67: гор.напиток | E67: Кофейный напиток с молоком | F67: 200 | G67: 3.6 | H67: 2.67 | I67: 29.2 | J67: 155 | K67: 379
D68: закуска | E68: Салат из моркови с сахаром | F68: 60 | G68: 0.516 | H68: 2.132 | I68: 4.45 | J68: 50 | K68: 52 | L68: 66.76
D70: итого
A71: =A63 -> 1 | B71: =B63 -> 4 | C71: Обед | D71: закуска
D72: 1 блюдо
D73: 2 блюдо
D74: гарнир
D75: напиток
D76: хлеб бел.
D77: хлеб черн.
D80: итого
A81: =A63 -> 1 | B81: =B63 -> 4 | C81: Итого за день: | F81: =SUM(F63:F68) -> 560 | G81: =SUM(G63:G68) -> 18.549 | H81: 18.824 | I81: 88.773 | J81: 637 | L81: =SUM(L63:L69) -> 66.76
A82: 1 | B82: 5 | C82: Завтрак | D82: гор.блюдо | E82: Макаронные изделия отварные | F82: 155 | G82: 5.1 | H82: 4.468 | I82: 28.5 | J82: 187 | K82: 203
D83: гор.блюдо | E83: Фрикадельки из говядины в соусе | F83: 105 | G83: 8.33 | H83: 7.743 | I83: 3.194 | J83: 175 | K83: 280
D84: хлеб | E84: Хлеб ржаной (ржано-пшеничный) | F84: 20 | G84: 1 | H84: 0.2 | I84: 9 | J84: 44 | K84: 376
D85: хлеб | E85: Хлеб пшеничный | F85: 30 | G85: 2.28 | H85: 0.24 | I85: 14.76 | J85: 71 | K85: 376
D86: гор.напиток | E86: Чай с сахаром | F86: 200 | G86: 0.53 | H86: 2.68 | I86: 9.47 | J86: 40 | K86: 376
D87: фрукты | E87: Плоды и ягоды свежие | F87: 100 | G87: 0.4 | H87: 0.4 | I87: 7.35 | J87: 47 | K87: 388 | L87: 66.76
D89: итого
A90: =A82 -> 1 | B90: =B82 -> 5 | C90: Обед | D90: закуска
D91: 1 блюдо
D92: 2 блюдо
D93: гарнир
D94: напиток
D95: хлеб бел.
D96: хлеб черн.
D99: итого
A100: =A82 -> 1 | B100: =B82 -> 5 | C100: Итого за день: | F100: =SUM(F82:F88) -> 610 | G100: =SUM(G82:G88) -> 17.64 | H100: 15.731 | I100: 72.274 | J100: 564 | L100: 66.76
A101: 2 | B101: 1 | C101: Завтрак | D101: гор.блюдо | E101: Пюре картофельное | F101: 150 | G101: 3.09 | H101: 8.282 | I101: 22 | J101: 172 | K101: 312
D102: гор.блюдо | E102: Котлеты рубленные из бройлер-цыплят | F102: 100 | G102: 12.8 | H102: 6.713 | I102: 24.2 | J102: 199 | K102: 295
D103: хлеб | E103: Хлеб ржаной (ржано-пшеничный) | F103: 20 | G103: 1 | H103: 0.2 | I103: 9 | J103: 44 | K103: 376
D104: хлеб | E104: Хлеб пшеничный | F104: 30 | G104: 2.28 | H104: 0.24 | I104: 14.76 | J104: 71 | K104: 376
D105: гор.напиток | E105: Кофейный напиток с молоком | F105: 200 | G105: 3.6 | H105: 2.67 | I105: 29.2 | J105: 155 | K105: 379
D106: фрукты | E106: Плоды и ягоды свежие | F106: 100 | G106: 0.4 | H106: 0.4 | I106: 7.35 | J106: 47 | K106: 388 | L106: 66.76
D108: итого
A109: =A101 -> 2 | B109: =B101 -> 1 | C109: Обед | D109: закуска
D110: 1 блюдо
D111: 2 блюдо
D112: гарнир
D113: напиток
D114: хлеб бел.
D115: хлеб черн.
D118: итого
A119: =A101 -> 2 | B119: =B101 -> 1 | C119: Итого за день: | F119: =SUM(F101:F106) -> 600 | G119: =SUM(G101:G106) -> 23.17 | H119: 18.505 | I119: 106.51 | J119: 688 | L119: =SUM(L101:L107) -> 66.76
A120: 2 | B120: 2 | C120: Завтрак | D120: гор.блюдо | E120: Гуляш | F120: 100 | G120: 14.55 | H120: 16.79 | I120: 2.89 | J120: 221 | K120: 240
D121: гор.блюдо | E121: Макаронные изделия отварные | F121: 155 | G121: 5.1 | H121: 4.468 | I121: 28.5 | J121: 187 | K121: 203
D122: хлеб | E122: Хлеб ржаной (ржано-пшеничный) | F122: 20 | G122: 1 | H122: 0.2 | I122: 9 | J122: 44 | K122: 376
D123: хлеб | E123: Хлеб пшеничный | F123: 30 | G123: 2.28 | H123: 0.24 | I123: 14.76 | J123: 71 | K123: 376
D124: гор.напиток | E124: Чай с сахаром | F124: 200 | G124: 0.53 | H124: 2.68 | I124: 9.47 | J124: 40 | K124: 376
D125: фрукты | E125: Плоды и ягоды свежие | F125: 100 | G125: 0.4 | H125: 0.4 | I125: 7.35 | J125: 47 | K125: 388 | L125: 66.76
D128: итого
A129: =A120 -> 2 | B129: =B120 -> 2 | C129: Обед | D129: закуска
D130: 1 блюдо
D131: 2 блюдо
D132: гарнир
D133: напиток
D134: хлеб бел.
D135: хлеб черн.
D138: итого
A139: =A120 -> 2 | B139: =B120 -> 2 | C139: Итого за день: | F139: =SUM(F120:F127) -> 605 | G139: =SUM(G120:G127) -> 23.86 | H139: 24.778 | I139: 71.97 | J139: 610 | L139: 66.76
A140: 2 | B140: 3 | C140: Завтрак | D140: гор.блюдо | E140: Плов из птицы | F140: 200 | G140: 14.51 | H140: 14.71 | I140: 28.34 | J140: 364 | K140: 291
D141: хлеб | E141: Хлеб ржаной (ржано-пшеничный) | F141: 20 | G141: 1 | H141: 0.2 | I141: 9 | J141: 44 | K141: 376
D142: хлеб | E142: Хлеб пшеничный | F142: 30 | G142: 2.28 | H142: 0.24 | I142: 14.76 | J142: 71 | K142: 376
D143: гор.напиток | E143: Чай с лимоном | F143: 200 | G143: 0.084 | H143: 0.012 | I143: 15.185 | J143: 62 | K143: 377
D144: фрукты | E144: Плоды и ягоды свежие | F144: 100 | G144: 0.4 | H144: 0.4 | I144: 7.35 | J144: 47 | K144: 388 | L144: 66.76
D146: итого
A147: =A140 -> 2 | B147: =B140 -> 3 | C147: Обед | D147: закуска
D148: 1 блюдо
D149: 2 блюдо
D150: гарнир
D151: напиток
D152: хлеб бел.
D153: хлеб черн.
D156: итого
A157: =A140 -> 2 | B157: =B140 -> 3 | C157: Итого за день: | F157: =SUM(F140:F145) -> 550 | G157: =SUM(G140:G145) -> 18.274 | H157: =SUM(H140:H145) -> 15.562 | I157: =SUM(I140:I145) -> 74.635 | J157: =SUM(J140:J145) -> 588 | L157: =SUM(L140:L145) -> 66.76
A158: 2 | B158: 4 | C158: Завтрак | D158: гор.блюдо | E158: Котлеты из говядины | F158: 100 | G158: 15.55 | H158: 11.55 | I158: 15.7 | J158: 228.75 | K158: 268
D159: гор.блюдо | E159: Каша рассыпчатая гречневая | F159: 150 | G159: 6.662 | H159: 9.024 | I159: 34 | J159: 170 | K159: 171
D160: хлеб | E160: Хлеб ржаной (ржано-пшеничный) | F160: 20 | G160: 1 | H160: 0.2 | I160: 9 | J160: 44 | K160: 376
D161: хлеб | E161: Хлеб пшеничный | F161: 30 | G161: 2.28 | H161: 0.24 | I161: 14.76 | J161: 71 | K161: 376
D162: гор.напиток | E162: Чай с молоком | F162: 200 | G162: 1.52 | H162: 1.35 | I162: 15.9 | J162: 81 | K162: 378
D163: закуска | E163: Салат из свеклы отварной | F163: 60 | G163: 0.86 | H163: 3.65 | I163: 5.02 | J163: 56.34 | K163: 52 | L163: 66.76
D165: итого
A166: =A158 -> 2 | B166: =B158 -> 4 | C166: Обед | D166: закуска
D167: 1 блюдо
D168: 2 блюдо
D169: гарнир
D170: напиток
D171: хлеб бел.
D172: хлеб черн.
D175: итого
A176: =A158 -> 2 | B176: =B158 -> 4 | C176: Итого за день: | F176: =SUM(F158:F163) -> 560 | G176: =SUM(G159:G163) -> 12.322 | H176: =SUM(H159:H163) -> 14.464 | I176: =SUM(I159:I163) -> 78.68 | J176: =SUM(J159:J163) -> 422.34 | L176: =SUM(L159:L163) -> 66.76
A177: 2 | B177: 5 | C177: Завтрак | D177: гор.блюдо | E177: Пюре картофельное | F177: 150 | G177: 3.09 | H177: 8.282 | I177: 22 | J177: 172 | K177: 312
D178: гор.блюдо | E178: Тефтели рыбные с соусом | F178: 105 | G178: 10.2 | H178: 10.89 | I178: 15.95 | J178: 173 | K178: 239
D179: хлеб | E179: Хлеб ржаной (ржано-пшеничный) | F179: 20 | G179: 1 | H179: 0.2 | I179: 9 | J179: 44 | K179: 376
D180: хлеб | E180: Хлеб пшеничный | F180: 30 | G180: 2.28 | H180: 0.24 | I180: 14.76 | J180: 71 | K180: 376
D181: гор.напиток | E181: Какао с молоком | F181: 200 | G181: 3.78 | H181: 0.67 | I181: 26 | J181: 125 | K181: 382
D182: фрукты | E182: Плоды и ягоды свежие | F182: 100 | G182: 0.4 | H182: 0.4 | I182: 7.35 | J182: 47 | K182: 388 | L182: 66.76
D184: итого
A185: =A177 -> 2 | B185: =B177 -> 5 | C185: Обед | D185: закуска
D186: 1 блюдо
D187: 2 блюдо
D188: гарнир
D189: напиток
D190: хлеб бел.
D191: хлеб черн.
D194: итого | F194: =SUM(F185:F193) -> 0 | G194: =SUM(G185:G193) -> 0 | H194: 0 | I194: 0 | J194: 0 | L194: =SUM(L185:L193) -> 0
A195: =A177 -> 2 | B195: =B177 -> 5 | C195: Итого за день: | F195: =SUM(F177:F183) -> 605 | G195: =SUM(G177:G183) -> 20.75 | H195: 20.682 | I195: 95.06 | J195: 632 | L195: 66.76
C196: Среднее значение за период: | F196: =(F24+F43+F62+F81+F100+F119+F139+F157+F176+F195)/(IF(F24=0,0,1)+IF(F43=0,0,1)+IF(F62=0,0,1)+IF(F81=0,0,1)+IF(F100=0,0,1)+IF(F119=0,0,1)+IF(F139=0,0,1)+IF(F157=0,0,1)+IF(F176=0,0,1)+IF(F195=0,0,1)) -> 580.5 | G196: =(G24+G43+G62+G81+G100+G119+G139+G157+G176+G195)/(IF(G24=0,0,1)+IF(G43=0,0,1)+IF(G62=0,0,1)+IF(G81=0,0,1)+IF(G100=0,0,1)+IF(G119=0,0,1)+IF(G139=0,0,1)+IF(G157=0,0,1)+IF(G176=0,0,1)+IF(G195=0,0,1)) -> 19.6406 | H196: =(H24+H43+H62+H81+H100+H119+H139+H157+H176+H195)/(IF(H24=0,0,1)+IF(H43=0,0,1)+IF(H62=0,0,1)+IF(H81=0,0,1)+IF(H100=0,0,1)+IF(H119=0,0,1)+IF(H139=0,0,1)+IF(H157=0,0,1)+IF(H176=0,0,1)+IF(H195=0,0,1)) -> 18.7471 | I196: =(I24+I43+I62+I81+I100+I119+I139+I157+I176+I195)/(IF(I24=0,0,1)+IF(I43=0,0,1)+IF(I62=0,0,1)+IF(I81=0,0,1)+IF(I100=0,0,1)+IF(I119=0,0,1)+IF(I139=0,0,1)+IF(I157=0,0,1)+IF(I176=0,0,1)+IF(I195=0,0,1)) -> 83.8081 | J196: =(J24+J43+J62+J81+J100+J119+J139+J157+J176+J195)/(IF(J24=0,0,1)+IF(J43=0,0,1)+IF(J62=0,0,1)+IF(J81=0,0,1)+IF(J100=0,0,1)+IF(J119=0,0,1)+IF(J139=0,0,1)+IF(J157=0,0,1)+IF(J176=0,0,1)+IF(J195=0,0,1)) -> 602.09 | L196: =(L24+L43+L62+L81+L100+L119+L139+L157+L176+L195)/(IF(L24=0,0,1)+IF(L43=0,0,1)+IF(L62=0,0,1)+IF(L81=0,0,1)+IF(L100=0,0,1)+IF(L119=0,0,1)+IF(L139=0,0,1)+IF(L157=0,0,1)+IF(L176=0,0,1)+IF(L195=0,0,1)) -> 66.76
